[Event "Early-Titled-Tuesday-Blitz-May-14-2024"]
[Site "Chess.com"]
[Date "2024.05.14"]
[Round "6"]
[White "Artem_Koval"]
[Black "GeorgiosSouleidis"]
[Result "1-0"]
[WhiteElo "2576"]
[BlackElo "2668"]
[TimeControl "180+1"]
[EndTime "9:09:14 PDT"]
[Termination "Artem_Koval won on time"]

1. d4 {[%clk 0:03:00.9]} 1... Nf6 {[%clk 0:02:56.8]} 2. Nf3 {[%clk 0:02:59.8]}
2... g6 {[%clk 0:02:57]} 3. Nc3 {[%clk 0:02:59.6]} 3... d5 {[%clk 0:02:57]} 4.
Bf4 {[%clk 0:02:59.8]} 4... Bg7 {[%clk 0:02:57.6]} 5. e3 {[%clk 0:03:00.4]} 5...
O-O {[%clk 0:02:57.7]} 6. Be2 {[%clk 0:03:01.1]} 6... c5 {[%clk 0:02:58.2]} 7.
O-O {[%clk 0:03:00.3]} 7... cxd4 {[%clk 0:02:56.9]} 8. exd4 {[%clk 0:03:01.2]}
8... Nc6 {[%clk 0:02:57.5]} 9. Ne5 {[%clk 0:03:01.6]} 9... Bd7 {[%clk
0:02:44.1]} 10. Bf3 {[%clk 0:02:59.5]} 10... e6 {[%clk 0:02:41.7]} 11. Re1
{[%clk 0:02:52]} 11... Rc8 {[%clk 0:02:40.5]} 12. Ne2 {[%clk 0:02:48.9]} 12...
Be8 {[%clk 0:02:06.9]} 13. c3 {[%clk 0:02:46.9]} 13... Nxe5 {[%clk 0:02:07]} 14.
Bxe5 {[%clk 0:02:47.8]} 14... Bb5 {[%clk 0:02:02.5]} 15. Ng3 {[%clk 0:02:46.8]}
15... Ne8 {[%clk 0:01:55.8]} 16. Qd2 {[%clk 0:02:41.7]} 16... Nd6 {[%clk
0:01:54.8]} 17. Qf4 {[%clk 0:02:37.9]} 17... Nc4 {[%clk 0:01:43.6]} 18. Bxg7
{[%clk 0:02:32.4]} 18... Kxg7 {[%clk 0:01:44.5]} 19. Rab1 {[%clk 0:02:27.3]}
19... Qf6 {[%clk 0:01:16.3]} 20. Qg4 {[%clk 0:02:14.7]} 20... Kh8 {[%clk
0:01:16.2]} 21. Be2 {[%clk 0:02:05.5]} 21... Ba6 {[%clk 0:01:09.2]} 22. Bxc4
{[%clk 0:02:03]} 22... Bxc4 {[%clk 0:01:07]} 23. a3 {[%clk 0:02:02]} 23... a5
{[%clk 0:01:05.1]} 24. Re5 {[%clk 0:01:58.1]} 24... Bd3 {[%clk 0:00:55.7]} 25.
Rbe1 {[%clk 0:01:57.7]} 25... Qg7 {[%clk 0:00:46.9]} 26. h4 {[%clk 0:01:53.3]}
26... Bb5 {[%clk 0:00:32.5]} 27. h5 {[%clk 0:01:53.1]} 27... Bd7 {[%clk
0:00:32.6]} 28. hxg6 {[%clk 0:01:34.3]} 28... hxg6 {[%clk 0:00:25.2]} 29. Nh5
{[%clk 0:01:34.3]} 29... Qh6 {[%clk 0:00:18.6]} 30. Nf6 {[%clk 0:01:34.4]} 30...
Rcd8 {[%clk 0:00:16.6]} 31. R1e3 {[%clk 0:01:31.7]} 31... Kg7 {[%clk 0:00:06.7]}
32. Nh5+ {[%clk 0:01:25.2]} 32... Kg8 {[%clk 0:00:04.7]} 33. Rh3 {[%clk
0:01:20]} 33... Qc1+ {[%clk 0:00:04.3]} 34. Kh2 {[%clk 0:01:20.2]} 34... Rfe8
{[%clk 0:00:03.1]} 35. Nf6+ {[%clk 0:00:59.3]} 35... Kf8 {[%clk 0:00:02.8]} 36.
Rh8+ {[%clk 0:00:49.3]} 36... Ke7 {[%clk 0:00:03.1]} 37. Nxe8 {[%clk 0:00:48.6]}
37... Bxe8 {[%clk 0:00:03.6]} 38. Rh3 {[%clk 0:00:40.9]} 38... Kd7 {[%clk
0:00:03.1]} 39. Rf3 {[%clk 0:00:39.6]} 39... Qxb2 {[%clk 0:00:03.1]} 40. Rxd5+
{[%clk 0:00:39.6]} 40... Kc7 {[%clk 0:00:03.2]} 41. Rxd8 {[%clk 0:00:36.5]}
41... Kxd8 {[%clk 0:00:04.1]} 42. Qg5+ {[%clk 0:00:37.1]} 42... Kc8 {[%clk
0:00:03.2]} 43. Qxa5 {[%clk 0:00:36]} 43... Qc2 {[%clk 0:00:01.5]} 44. Qc5+
{[%clk 0:00:32.6]} 44... Kb8 {[%clk 0:00:01.2]} 45. Qf8 {[%clk 0:00:30.5]} 45...
Qa4 {[%clk 0:00:01.4]} 46. Rxf7 {[%clk 0:00:30.4]} 46... Ka7 {[%clk 0:00:02.1]}
47. Qc5+ {[%clk 0:00:25.2]} 47... Ka6 {[%clk 0:00:01.9]} 48. Rc7 {[%clk
0:00:17.8]} 48... Bc6 {[%clk 0:00:02.1]} 49. Rc8 {[%clk 0:00:17.8]} 1-0

[Event "Early-Titled-Tuesday-Blitz-May-14-2024"]
[Site "Chess.com"]
[Date "2024.05.14"]
[Round "6"]
[White "MikeWizard"]
[Black "mfschulz"]
[Result "0-1"]
[WhiteElo "2012"]
[BlackElo "2324"]
[TimeControl "180+1"]
[EndTime "9:09:14 PDT"]
[Termination "mfschulz won on time"]

1. d4 {[%clk 0:02:29.3]} 1... Nf6 {[%clk 0:02:58.6]} 2. c4 {[%clk 0:02:28.3]}
2... c5 {[%clk 0:02:58.8]} 3. d5 {[%clk 0:02:27.9]} 3... e6 {[%clk 0:02:59.1]}
4. Nc3 {[%clk 0:02:27.2]} 4... exd5 {[%clk 0:02:59.3]} 5. cxd5 {[%clk
0:02:27.4]} 5... d6 {[%clk 0:02:58.9]} 6. Nf3 {[%clk 0:02:27.6]} 6... a6 {[%clk
0:02:59.2]} 7. a4 {[%clk 0:02:26.7]} 7... g6 {[%clk 0:02:59.4]} 8. Bf4 {[%clk
0:02:25.7]} 8... Nh5 {[%clk 0:02:57.3]} 9. Bg5 {[%clk 0:02:24.9]} 9... Qb6
{[%clk 0:02:55.9]} 10. Qc2 {[%clk 0:02:20.7]} 10... h6 {[%clk 0:02:52.7]} 11.
Bd2 {[%clk 0:02:13.6]} 11... Bg7 {[%clk 0:02:52]} 12. e4 {[%clk 0:02:10.9]}
12... O-O {[%clk 0:02:51.3]} 13. Be2 {[%clk 0:02:04.5]} 13... Bg4 {[%clk
0:02:42.7]} 14. h3 {[%clk 0:02:01.8]} 14... Bxf3 {[%clk 0:02:41.9]} 15. Bxf3
{[%clk 0:02:01.8]} 15... Nd7 {[%clk 0:02:41.3]} 16. Bxh5 {[%clk 0:01:58.6]}
16... gxh5 {[%clk 0:02:40.8]} 17. O-O {[%clk 0:01:53.1]} 17... Ne5 {[%clk
0:02:30.2]} 18. a5 {[%clk 0:01:52.5]} 18... Qd8 {[%clk 0:02:29.1]} 19. Qd1
{[%clk 0:01:45.7]} 19... Qh4 {[%clk 0:02:27.3]} 20. f4 {[%clk 0:01:24]} 20...
Nc4 {[%clk 0:02:24.3]} 21. Bc1 {[%clk 0:01:19.3]} 21... Bd4+ {[%clk 0:02:19.2]}
22. Kh2 {[%clk 0:01:17.6]} 22... f5 {[%clk 0:01:53.6]} 23. Qe1 {[%clk
0:01:12.3]} 23... Qxe1 {[%clk 0:01:51.3]} 24. Rxe1 {[%clk 0:01:10.9]} 24... Rae8
{[%clk 0:01:48.2]} 25. Ra4 {[%clk 0:00:58.9]} 25... b5 {[%clk 0:01:33.6]} 26.
axb6 {[%clk 0:00:58]} 26... Nxb6 {[%clk 0:01:32.4]} 27. Rxa6 {[%clk 0:00:55.6]}
27... Bxc3 {[%clk 0:01:32.2]} 28. bxc3 {[%clk 0:00:53.9]} 28... Nxd5 {[%clk
0:01:31.6]} 29. Rxd6 {[%clk 0:00:46.7]} 29... Nxc3 {[%clk 0:01:31.5]} 30. e5
{[%clk 0:00:43.5]} 30... Ne4 {[%clk 0:01:31]} 31. Rxh6 {[%clk 0:00:38.5]} 31...
Ra8 {[%clk 0:01:24.4]} 32. Rxh5 {[%clk 0:00:27.1]} 32... Ra1 {[%clk 0:01:23.5]}
33. Bd2 {[%clk 0:00:24.9]} 33... Rxe1 {[%clk 0:01:18.8]} 34. Bxe1 {[%clk
0:00:24.6]} 34... c4 {[%clk 0:01:19]} 35. Rh6 {[%clk 0:00:23.1]} 35... Rc8
{[%clk 0:01:17.5]} 36. Rh5 {[%clk 0:00:20.9]} 36... c3 {[%clk 0:01:15]} 37. Bxc3
{[%clk 0:00:20.9]} 37... Rxc3 {[%clk 0:01:13.3]} 38. Rxf5 {[%clk 0:00:20.8]}
38... Kg7 {[%clk 0:01:13.3]} 39. g4 {[%clk 0:00:18.3]} 39... Rc2+ {[%clk
0:01:09]} 40. Kg1 {[%clk 0:00:17.6]} 40... Nf2 {[%clk 0:01:08.4]} 41. Rh5 {[%clk
0:00:16.7]} 41... Nd3 {[%clk 0:01:04.5]} 42. Rf5 {[%clk 0:00:14.1]} 42... Kg6
{[%clk 0:01:03]} 43. Rf6+ {[%clk 0:00:13.9]} 43... Kg7 {[%clk 0:01:02.6]} 44.
Rf5 {[%clk 0:00:11.8]} 44... Nf2 {[%clk 0:00:59.1]} 45. Rh5 {[%clk 0:00:09.3]}
45... Ne4 {[%clk 0:00:57.5]} 46. Rf5 {[%clk 0:00:09.1]} 46... Rc3 {[%clk
0:00:55.4]} 47. Kg2 {[%clk 0:00:08.3]} 47... Rg3+ {[%clk 0:00:55]} 48. Kh2
{[%clk 0:00:07.8]} 48... Rf3 {[%clk 0:00:54.7]} 49. h4 {[%clk 0:00:06.3]} 49...
Ra3 {[%clk 0:00:43.9]} 50. e6 {[%clk 0:00:06]} 50... Nf2 {[%clk 0:00:42.7]} 51.
g5 {[%clk 0:00:03.9]} 51... Ng4+ {[%clk 0:00:41.1]} 52. Kg1 {[%clk 0:00:02.9]}
52... Re3 {[%clk 0:00:41.1]} 53. Rf7+ {[%clk 0:00:01.8]} 53... Kg8 {[%clk
0:00:28.2]} 54. f5 {[%clk 0:00:02.1]} 54... Rg3+ {[%clk 0:00:26.3]} 55. Kf1
{[%clk 0:00:01]} 55... Rf3+ {[%clk 0:00:25.6]} 56. Ke2 {[%clk 0:00:00.5]} 56...
Re3+ {[%clk 0:00:24.8]} 57. Kd2 {[%clk 0:00:00.5]} 57... Re5 {[%clk 0:00:24.3]}
58. Ra7 {[%clk 0:00:00.4]} 58... Rxf5 {[%clk 0:00:24]} 0-1

[Event "Early-Titled-Tuesday-Blitz-May-14-2024"]
[Site "Chess.com"]
[Date "2024.05.14"]
[Round "6"]
[White "zajka-molotok"]
[Black "jinbojinbo"]
[Result "0-1"]
[WhiteElo "2542"]
[BlackElo "2665"]
[TimeControl "180+1"]
[EndTime "9:09:15 PDT"]
[Termination "jinbojinbo won on time"]

1. e4 {[%clk 0:03:00.9]} 1... e5 {[%clk 0:02:59.8]} 2. Nf3 {[%clk 0:03:00.3]}
2... Nc6 {[%clk 0:02:59.8]} 3. Nc3 {[%clk 0:03:00.1]} 3... Nf6 {[%clk
0:02:56.7]} 4. Bb5 {[%clk 0:02:59.8]} 4... Bc5 {[%clk 0:02:55.3]} 5. Nxe5 {[%clk
0:02:43.5]} 5... Nxe5 {[%clk 0:02:23.9]} 6. d4 {[%clk 0:02:42.8]} 6... Bd6
{[%clk 0:02:14.1]} 7. dxe5 {[%clk 0:02:41]} 7... Bxe5 {[%clk 0:02:15]} 8. O-O
{[%clk 0:02:36.8]} 8... O-O {[%clk 0:02:14.6]} 9. Bd3 {[%clk 0:02:30.3]} 9... d6
{[%clk 0:02:08.4]} 10. Bd2 {[%clk 0:02:25.3]} 10... Re8 {[%clk 0:02:04.2]} 11.
h3 {[%clk 0:02:21.4]} 11... c6 {[%clk 0:01:59.5]} 12. Qf3 {[%clk 0:02:16.9]}
12... Be6 {[%clk 0:01:56.7]} 13. Rfe1 {[%clk 0:02:13.3]} 13... Qc7 {[%clk
0:01:54.8]} 14. Bf4 {[%clk 0:01:52.9]} 14... h6 {[%clk 0:01:50.6]} 15. Rad1
{[%clk 0:01:50.3]} 15... Nd7 {[%clk 0:01:48.3]} 16. Qg3 {[%clk 0:01:44]} 16...
Kh8 {[%clk 0:01:43.6]} 17. Ne2 {[%clk 0:01:40.6]} 17... Rad8 {[%clk 0:01:41.6]}
18. c3 {[%clk 0:01:39.2]} 18... a5 {[%clk 0:01:39.9]} 19. Bb1 {[%clk 0:01:32.8]}
19... Qb6 {[%clk 0:01:35.3]} 20. Rd2 {[%clk 0:01:27.9]} 20... Bc4 {[%clk
0:01:22.9]} 21. Nd4 {[%clk 0:01:23.7]} 21... Be6 {[%clk 0:00:56.1]} 22. Red1
{[%clk 0:01:13.6]} 22... Bxf4 {[%clk 0:00:42.2]} 23. Qxf4 {[%clk 0:01:13]} 23...
d5 {[%clk 0:00:39.3]} 24. exd5 {[%clk 0:01:00.5]} 24... Bxd5 {[%clk 0:00:38.6]}
25. Nf5 {[%clk 0:00:53.1]} 25... Ne5 {[%clk 0:00:15.3]} 26. c4 {[%clk
0:00:12.2]} 26... Nxc4 {[%clk 0:00:08.9]} 27. Qg3 {[%clk 0:00:12.3]} 27... g6
{[%clk 0:00:06.8]} 28. Qc3+ {[%clk 0:00:10.3]} 28... Ne5 {[%clk 0:00:06.9]} 29.
Nxh6 {[%clk 0:00:10.1]} 29... Kh7 {[%clk 0:00:06.5]} 30. Ng4 {[%clk 0:00:09.7]}
30... Nxg4 {[%clk 0:00:06.6]} 31. hxg4 {[%clk 0:00:10.6]} 31... Qb4 {[%clk
0:00:06.6]} 32. Qh3+ {[%clk 0:00:09.9]} 32... Kg8 {[%clk 0:00:06.5]} 33. Qg3
{[%clk 0:00:09.6]} 33... Re7 {[%clk 0:00:05.2]} 34. g5 {[%clk 0:00:09.5]} 34...
Rde8 {[%clk 0:00:05.3]} 35. Kh2 {[%clk 0:00:09.5]} 35... Re1 {[%clk 0:00:05.2]}
36. Rxe1 {[%clk 0:00:09.1]} 36... Rxe1 {[%clk 0:00:06.1]} 37. Qd3 {[%clk
0:00:03]} 37... Rxb1 {[%clk 0:00:05]} 38. Re2 {[%clk 0:00:03.1]} 38... Rxb2
{[%clk 0:00:02.9]} 39. Re8+ {[%clk 0:00:02.7]} 39... Kg7 {[%clk 0:00:03.3]} 40.
Qh3 {[%clk 0:00:02.9]} 40... Qf4+ {[%clk 0:00:02.3]} 0-1

[Event "Early-Titled-Tuesday-Blitz-May-14-2024"]
[Site "Chess.com"]
[Date "2024.05.14"]
[Round "6"]
[White "MariaFominykh"]
[Black "guillembaches"]
[Result "1/2-1/2"]
[WhiteElo "2377"]
[BlackElo "2565"]
[TimeControl "180+1"]
[EndTime "9:09:16 PDT"]
[Termination "Game drawn by repetition"]

1. d4 {[%clk 0:03:00.9]} 1... Nf6 {[%clk 0:03:00.3]} 2. c4 {[%clk 0:03:00.8]}
2... e6 {[%clk 0:03:00.9]} 3. Nf3 {[%clk 0:03:00.1]} 3... d5 {[%clk 0:03:01.4]}
4. Nc3 {[%clk 0:02:59.5]} 4... a6 {[%clk 0:03:01]} 5. cxd5 {[%clk 0:02:59.5]}
5... exd5 {[%clk 0:03:01.2]} 6. Bg5 {[%clk 0:02:59.6]} 6... Be6 {[%clk
0:03:01.3]} 7. e3 {[%clk 0:02:59.9]} 7... Nbd7 {[%clk 0:03:01.4]} 8. Bd3 {[%clk
0:02:59.4]} 8... Bd6 {[%clk 0:03:01.3]} 9. h3 {[%clk 0:02:58.8]} 9... c6 {[%clk
0:03:01.3]} 10. Qc2 {[%clk 0:02:57.5]} 10... Qc7 {[%clk 0:03:01.3]} 11. Rb1
{[%clk 0:02:55]} 11... h6 {[%clk 0:03:01.1]} 12. Bxf6 {[%clk 0:02:51.9]} 12...
Nxf6 {[%clk 0:03:01.1]} 13. b4 {[%clk 0:02:52.1]} 13... Qe7 {[%clk 0:02:52.9]}
14. a3 {[%clk 0:02:36.3]} 14... O-O {[%clk 0:02:52.1]} 15. O-O {[%clk
0:02:34.1]} 15... Rfe8 {[%clk 0:02:50.7]} 16. Na4 {[%clk 0:02:31.9]} 16... Nd7
{[%clk 0:02:42.8]} 17. Nc5 {[%clk 0:02:30.2]} 17... Rab8 {[%clk 0:02:34.7]} 18.
a4 {[%clk 0:01:56.3]} 18... Nb6 {[%clk 0:02:16.9]} 19. Nxe6 {[%clk 0:01:28.1]}
19... Qxe6 {[%clk 0:02:05.3]} 20. b5 {[%clk 0:01:26.6]} 20... cxb5 {[%clk
0:01:59.4]} 21. axb5 {[%clk 0:01:27.5]} 21... a5 {[%clk 0:01:59.6]} 22. Bf5
{[%clk 0:01:22.5]} 22... Qe7 {[%clk 0:01:58.2]} 23. Nd2 {[%clk 0:00:53.4]} 23...
a4 {[%clk 0:01:53.1]} 24. e4 {[%clk 0:00:45.3]} 24... dxe4 {[%clk 0:01:50.8]}
25. Nxe4 {[%clk 0:00:41.6]} 25... a3 {[%clk 0:01:31.5]} 26. Nc5 {[%clk
0:00:30.8]} 26... Ra8 {[%clk 0:01:21.5]} 27. Ra1 {[%clk 0:00:24.7]} 27... Qf6
{[%clk 0:01:17]} 28. Rfd1 {[%clk 0:00:20.7]} 28... a2 {[%clk 0:00:58.2]} 29.
Bh7+ {[%clk 0:00:14.5]} 29... Kh8 {[%clk 0:00:57.5]} 30. Be4 {[%clk 0:00:14.4]}
30... Ra3 {[%clk 0:00:29.3]} 31. Rxa2 {[%clk 0:00:10.2]} 31... Rxa2 {[%clk
0:00:23.2]} 32. Qxa2 {[%clk 0:00:11.1]} 32... Bxc5 {[%clk 0:00:22.1]} 33. dxc5
{[%clk 0:00:11]} 33... Rxe4 {[%clk 0:00:22.2]} 34. cxb6 {[%clk 0:00:10.7]} 34...
Qxb6 {[%clk 0:00:21.3]} 35. Qxf7 {[%clk 0:00:10.1]} 35... Kh7 {[%clk 0:00:15.2]}
36. Qf5+ {[%clk 0:00:08.9]} 36... Qg6 {[%clk 0:00:15.4]} 37. Qxg6+ {[%clk
0:00:08.1]} 37... Kxg6 {[%clk 0:00:16.3]} 38. Rd7 {[%clk 0:00:08]} 38... Re1+
{[%clk 0:00:16.4]} 39. Kh2 {[%clk 0:00:07.7]} 39... Re2 {[%clk 0:00:17]} 40. Kg3
{[%clk 0:00:07.7]} 40... b6 {[%clk 0:00:17]} 41. Rd6+ {[%clk 0:00:07.6]} 41...
Kf5 {[%clk 0:00:17.6]} 42. Rxb6 {[%clk 0:00:07.9]} 42... g5 {[%clk 0:00:18.3]}
43. f3 {[%clk 0:00:07.5]} 43... h5 {[%clk 0:00:18.7]} 44. h4 {[%clk 0:00:06.9]}
44... Rb2 {[%clk 0:00:18.1]} 45. hxg5 {[%clk 0:00:06.4]} 45... Kxg5 {[%clk
0:00:19]} 46. Kh3 {[%clk 0:00:05.3]} 46... Rb1 {[%clk 0:00:18.3]} 47. Kg3 {[%clk
0:00:03.5]} 47... h4+ {[%clk 0:00:15]} 48. Kf2 {[%clk 0:00:03.3]} 48... Rb2+
{[%clk 0:00:15.2]} 49. Kf1 {[%clk 0:00:03.3]} 49... Rb1+ {[%clk 0:00:15.6]} 50.
Kf2 {[%clk 0:00:03.5]} 50... Rb2+ {[%clk 0:00:16]} 51. Kf1 {[%clk 0:00:03.2]}
51... Rb1+ {[%clk 0:00:15.2]} 52. Kf2 {[%clk 0:00:03.1]} 1/2-1/2

[Event "Early-Titled-Tuesday-Blitz-May-14-2024"]
[Site "Chess.com"]
[Date "2024.05.14"]
[Round "6"]
[White "nitpicker"]
[Black "TheAlienParty"]
[Result "0-1"]
[WhiteElo "2278"]
[BlackElo "2427"]
[TimeControl "180+1"]
[EndTime "9:09:17 PDT"]
[Termination "TheAlienParty won on time"]

1. d4 {[%clk 0:03:00.9]} 1... Nf6 {[%clk 0:02:58.7]} 2. c4 {[%clk 0:03:00.3]}
2... e6 {[%clk 0:02:56.4]} 3. g3 {[%clk 0:03:00]} 3... d5 {[%clk 0:02:55.6]} 4.
Nf3 {[%clk 0:02:59.3]} 4... Bb4+ {[%clk 0:02:53.8]} 5. Bd2 {[%clk 0:02:58.8]}
5... a5 {[%clk 0:02:52.7]} 6. a3 {[%clk 0:02:52]} 6... Bxd2+ {[%clk 0:02:50.9]}
7. Nbxd2 {[%clk 0:02:49.9]} 7... O-O {[%clk 0:02:49.4]} 8. Bg2 {[%clk
0:02:49.3]} 8... b6 {[%clk 0:02:45.8]} 9. cxd5 {[%clk 0:02:38]} 9... exd5 {[%clk
0:02:44.9]} 10. Rc1 {[%clk 0:02:35.3]} 10... Bb7 {[%clk 0:02:29.2]} 11. Qc2
{[%clk 0:02:29.8]} 11... Na6 {[%clk 0:02:24.8]} 12. O-O {[%clk 0:02:25.7]} 12...
Re8 {[%clk 0:02:23.9]} 13. e3 {[%clk 0:02:20.3]} 13... Ne4 {[%clk 0:02:21.1]}
14. Nxe4 {[%clk 0:02:13]} 14... dxe4 {[%clk 0:02:20.4]} 15. Ne5 {[%clk
0:01:53.9]} 15... c5 {[%clk 0:02:07.6]} 16. Rfd1 {[%clk 0:01:37.5]} 16... cxd4
{[%clk 0:02:05.6]} 17. Rxd4 {[%clk 0:01:17.6]} 17... Qc8 {[%clk 0:01:32.8]} 18.
Nc4 {[%clk 0:01:11]} 18... Qc5 {[%clk 0:01:14]} 19. Nd6 {[%clk 0:01:06]} 19...
Qxc2 {[%clk 0:01:12.2]} 20. Rxc2 {[%clk 0:01:06.9]} 20... Nc5 {[%clk 0:00:50]}
21. Nxe8 {[%clk 0:00:59.6]} 21... Rxe8 {[%clk 0:00:49.6]} 22. b4 {[%clk
0:00:58.1]} 22... axb4 {[%clk 0:00:49.2]} 23. axb4 {[%clk 0:00:57.9]} 23... Nd3
{[%clk 0:00:32.4]} 24. Bxe4 {[%clk 0:00:47.7]} 24... Bxe4 {[%clk 0:00:30.5]} 25.
Rxe4 {[%clk 0:00:45.3]} 25... Ra8 {[%clk 0:00:28.5]} 26. Rc3 {[%clk 0:00:23.6]}
26... Ne1 {[%clk 0:00:25.8]} 27. Kf1 {[%clk 0:00:21.5]} 27... Nf3 {[%clk
0:00:24.3]} 28. Ke2 {[%clk 0:00:20.1]} 28... Ng1+ {[%clk 0:00:20.9]} 29. Kd3
{[%clk 0:00:18.8]} 29... Nh3 {[%clk 0:00:20.2]} 30. Rec4 {[%clk 0:00:18]} 30...
Nxf2+ {[%clk 0:00:19.8]} 31. Ke2 {[%clk 0:00:17.4]} 31... Ra2+ {[%clk
0:00:19.3]} 32. Kf3 {[%clk 0:00:16.6]} 32... h5 {[%clk 0:00:17.8]} 33. Rc8+
{[%clk 0:00:15.1]} 33... Kh7 {[%clk 0:00:17.8]} 34. Rc2 {[%clk 0:00:15.5]} 34...
Rxc2 {[%clk 0:00:16.1]} 35. Rxc2 {[%clk 0:00:16.1]} 35... Ng4 {[%clk 0:00:16.2]}
36. h3 {[%clk 0:00:10.4]} 36... Ne5+ {[%clk 0:00:15.9]} 37. Ke4 {[%clk
0:00:10.6]} 37... f6 {[%clk 0:00:15.8]} 38. Rc7 {[%clk 0:00:08.8]} 38... b5
{[%clk 0:00:13]} 39. Rc5 {[%clk 0:00:07.2]} 39... Nc4 {[%clk 0:00:12.5]} 40. Kd4
{[%clk 0:00:03.6]} 40... g6 {[%clk 0:00:11.9]} 41. Rxb5 {[%clk 0:00:02.9]} 41...
Nd2 {[%clk 0:00:11.5]} 42. Rb7+ {[%clk 0:00:02.6]} 42... Kh6 {[%clk 0:00:11.8]}
43. b5 {[%clk 0:00:03.1]} 43... Nb3+ {[%clk 0:00:11.8]} 44. Kd5 {[%clk
0:00:01.2]} 44... Na5 {[%clk 0:00:11.7]} 45. Ra7 {[%clk 0:00:00.9]} 45... Nb3
{[%clk 0:00:11.8]} 46. b6 {[%clk 0:00:01.4]} 46... Nd2 {[%clk 0:00:11.8]} 47. b7
{[%clk 0:00:01.1]} 47... h4 {[%clk 0:00:12.7]} 48. gxh4 {[%clk 0:00:00.2]} 48...
Kh5 {[%clk 0:00:12.7]} 49. b8=Q {[%clk 0:00:00.5]} 49... Kxh4 {[%clk 0:00:13.2]}
50. Qh8+ {[%clk 0:00:00.8]} 50... Kg3 {[%clk 0:00:13.5]} 51. Ra5 {[%clk
0:00:00.9]} 51... Nf3 {[%clk 0:00:13.5]} 52. Ke4 {[%clk 0:00:00.7]} 52... Ng5+
{[%clk 0:00:13.5]} 0-1

[Event "Early-Titled-Tuesday-Blitz-May-14-2024"]
[Site "Chess.com"]
[Date "2024.05.14"]
[Round "6"]
[White "lluiss"]
[Black "A4RookA3"]
[Result "0-1"]
[WhiteElo "2211"]
[BlackElo "2437"]
[TimeControl "180+1"]
[EndTime "9:09:18 PDT"]
[Termination "A4RookA3 won on time"]

1. Nf3 {[%clk 0:03:00.9]} 1... c5 {[%clk 0:02:51.8]} 2. c4 {[%clk 0:02:59.9]}
2... Nc6 {[%clk 0:02:49.4]} 3. Nc3 {[%clk 0:02:59.8]} 3... g6 {[%clk 0:02:47]}
4. e3 {[%clk 0:02:59.8]} 4... Nf6 {[%clk 0:02:47.3]} 5. d4 {[%clk 0:02:58.6]}
5... cxd4 {[%clk 0:02:48.2]} 6. exd4 {[%clk 0:02:57.7]} 6... d5 {[%clk
0:02:48.7]} 7. cxd5 {[%clk 0:02:57.3]} 7... Nxd5 {[%clk 0:02:49.6]} 8. Qb3
{[%clk 0:02:57.1]} 8... Nxc3 {[%clk 0:02:48.8]} 9. Bc4 {[%clk 0:02:56.8]} 9...
Nd5 {[%clk 0:02:48.9]} 10. Bxd5 {[%clk 0:02:56.3]} 10... e6 {[%clk 0:02:49.6]}
11. Bxc6+ {[%clk 0:02:56.4]} 11... bxc6 {[%clk 0:02:50.5]} 12. O-O {[%clk
0:02:51.4]} 12... Bg7 {[%clk 0:02:48.5]} 13. Be3 {[%clk 0:02:51.1]} 13... O-O
{[%clk 0:02:45.3]} 14. Rfc1 {[%clk 0:02:50.7]} 14... Qd5 {[%clk 0:02:40.7]} 15.
Qa4 {[%clk 0:02:40.7]} 15... Qb5 {[%clk 0:02:31.6]} 16. Qxb5 {[%clk 0:02:16.7]}
16... cxb5 {[%clk 0:02:32.5]} 17. Rc5 {[%clk 0:02:14.3]} 17... a6 {[%clk
0:01:54.7]} 18. Rc7 {[%clk 0:02:09.1]} 18... Rb8 {[%clk 0:01:48]} 19. Rac1
{[%clk 0:02:03.6]} 19... Bb7 {[%clk 0:01:47.4]} 20. Ne5 {[%clk 0:01:39.9]} 20...
Rfc8 {[%clk 0:01:36.9]} 21. Nxf7 {[%clk 0:01:14]} 21... Rxc7 {[%clk 0:01:27.6]}
22. Rxc7 {[%clk 0:01:12.7]} 22... Bd5 {[%clk 0:01:26.4]} 23. b3 {[%clk
0:01:01.1]} 23... a5 {[%clk 0:01:21.9]} 24. Ne5 {[%clk 0:00:49.4]} 24... a4
{[%clk 0:01:15.6]} 25. Nc6 {[%clk 0:00:33.2]} 25... Ra8 {[%clk 0:01:12]} 26.
Ne7+ {[%clk 0:00:29.8]} 26... Kf8 {[%clk 0:01:10.1]} 27. Nxd5 {[%clk 0:00:30]}
27... axb3 {[%clk 0:01:00.1]} 28. Nc3 {[%clk 0:00:22.1]} 28... bxa2 {[%clk
0:00:58.8]} 29. Nxa2 {[%clk 0:00:22.1]} 29... Rxa2 {[%clk 0:00:59.6]} 30. g3
{[%clk 0:00:22.4]} 30... Ra1+ {[%clk 0:00:41.1]} 31. Kg2 {[%clk 0:00:21.8]}
31... b4 {[%clk 0:00:40.9]} 32. Rb7 {[%clk 0:00:21.8]} 32... Rb1 {[%clk
0:00:40.2]} 33. Rb8+ {[%clk 0:00:21.6]} 33... Kf7 {[%clk 0:00:39.9]} 34. h4
{[%clk 0:00:21.4]} 34... Bf8 {[%clk 0:00:36.1]} 35. Rb7+ {[%clk 0:00:21.2]}
35... Kg8 {[%clk 0:00:29.3]} 36. Rb8 {[%clk 0:00:21.4]} 36... Kf7 {[%clk
0:00:22.1]} 37. Rb7+ {[%clk 0:00:21.4]} 37... Ke8 {[%clk 0:00:18.7]} 38. Rb8+
{[%clk 0:00:21.2]} 38... Ke7 {[%clk 0:00:16.8]} 39. Rb7+ {[%clk 0:00:20.9]}
39... Kd6 {[%clk 0:00:16.1]} 40. Rxh7 {[%clk 0:00:19.1]} 40... b3 {[%clk
0:00:12.5]} 41. Rb7 {[%clk 0:00:16]} 41... Kd5 {[%clk 0:00:12.5]} 42. Rb8 {[%clk
0:00:10.1]} 42... Bd6 {[%clk 0:00:11.8]} 43. Rb5+ {[%clk 0:00:08.8]} 43... Kc4
{[%clk 0:00:12.1]} 44. Rb7 {[%clk 0:00:08.6]} 44... b2 {[%clk 0:00:12.2]} 45. d5
{[%clk 0:00:07.7]} 45... exd5 {[%clk 0:00:10.2]} 46. Bd2 {[%clk 0:00:05.5]}
46... Kd3 {[%clk 0:00:08.5]} 47. Ba5 {[%clk 0:00:04.8]} 47... d4 {[%clk
0:00:07.6]} 48. Rb6 {[%clk 0:00:04.7]} 48... Bc7 {[%clk 0:00:05.7]} 49. Rb5
{[%clk 0:00:01.8]} 49... Bxa5 {[%clk 0:00:05.6]} 50. Rxa5 {[%clk 0:00:01.9]}
50... Rc1 {[%clk 0:00:06.5]} 0-1